bitfinex-derivatives/quotes_BTCF0:USTF0_20260315
["timestamp","ask_amount","ask_price","bid_price","bid_amount"]
[1773608491029,0.041801,71758.0,71736.0,0.041813]
[1773608491229,0.041801,71758.0,71747.0,0.041807]
[1773608491429,0.043201,71757.0,71745.0,0.041808]
[1773608492032,0.0014,71757.0,71747.0,0.041807]
[1773608492237,0.0014,71757.0,71739.0,0.0014]
[1773608492238,0.0014,71757.0,71748.0,0.041806]
[1773608493151,0.0014,71757.0,71749.0,0.041805]
[1773608495133,0.0014,71757.0,71747.0,0.00733]
[1773608495340,0.0014,71757.0,71749.0,0.041805]
[1773608497327,0.0014,71757.0,71747.0,0.00733]
[1773608497328,0.041803,71755.0,71747.0,0.00733]
[1773608497532,0.0014,71755.0,71747.0,0.00733]
[1773608500444,0.041803,71754.0,71747.0,0.00733]
[1773608501539,0.0014,71755.0,71747.0,0.00733]
[1773608502229,0.041803,71754.0,71747.0,0.00733]
[1773608503538,0.041803,71753.0,71747.0,0.00733]
[1773608508350,0.0014,71755.0,71747.0,0.00733]
[1773608508646,0.041804,71753.0,71747.0,0.00733]
[1773608511250,0.043203,71755.0,71747.0,0.00733]
[1773608513050,0.12717662,71768.0,71747.0,0.00733]
[1773608513351,0.0418,71760.0,71748.0,0.041806]
[1773608513551,0.0014,71759.0,71748.0,0.041806]
[1773608513745,0.0014,71758.0,71749.0,0.041805]
[1773608513939,0.041798,71762.0,71750.0,0.041805]
[1773608514146,0.001,71768.0,71747.0,0.00733]
[1773608514343,0.0014,71767.0,71747.0,0.00733]
[1773608514544,0.0014,71767.0,71751.0,0.041804]
[1773608514851,0.041798,71764.0,71753.0,0.041803]
[1773608515150,0.041798,71763.0,71751.0,0.041804]
[1773608515755,0.0014,71762.0,71751.0,0.041804]
[1773608516053,0.041798,71763.0,71751.0,0.041804]
[1773608516254,0.0014,71761.0,71751.0,0.041804]
[1773608516647,0.0014,71760.0,71751.0,0.041804]
[1773608519649,0.0014,71760.0,71750.0,0.02201]
[1773608520157,0.0014,71760.0,71754.0,0.041802]
[1773608520352,0.12260666,71771.0,71758.0,0.0418]
[1773608520545,0.041793,71771.0,71759.0,0.0418]
[1773608520750,0.0014,71770.0,71759.0,0.0418]
[1773608521249,0.0014,71769.0,71759.0,0.0418]
[1773608521449,0.03638479,71781.0,71750.0,0.10946472]
[1773608521450,0.00069656,71781.0,71750.0,0.10946472]
[1773608521652,0.04179,71776.0,71764.0,0.041797]
[1773608521849,0.0014,71775.0,71764.0,0.041797]
[1773608522051,0.04179,71776.0,71764.0,0.041797]
[1773608522052,0.0014,71774.0,71764.0,0.041797]
[1773608522554,0.00069656,71781.0,71751.0,0.0014]
[1773608522555,0.041789,71778.0,71751.0,0.0014]
[1773608522750,0.0014,71777.0,71751.0,0.0014]
[1773608523151,0.0014,71776.0,71751.0,0.0014]
[1773608523355,0.0014,71776.0,71766.0,0.041796]
[1773608523955,0.0014,71775.0,71760.0,0.08745472]
[1773608524760,0.04248356,71781.0,71769.0,0.041794]
[1773608525059,0.0014,71780.0,71769.0,0.041794]
[1773608525558,0.04248356,71781.0,71769.0,0.041794]
[1773608525760,0.00069656,71781.0,71769.0,0.041794]
[1773608525960,0.0014,71780.0,71770.0,0.041793]
[1773608526160,0.0014,71780.0,71768.0,0.041794]
[1773608526463,0.0014,71779.0,71768.0,0.041794]
[1773608526851,0.04248356,71781.0,71768.0,0.041794]
[1773608527051,0.0014,71780.0,71768.0,0.041794]
[1773608527445,0.0014,71779.0,71768.0,0.041794]
[1773608527650,0.0014,71779.0,71769.0,0.041794]
[1773608527862,0.04248356,71781.0,71769.0,0.041794]
[1773608528054,0.0014,71780.0,71769.0,0.041794]
[1773608528449,0.0014,71779.0,71769.0,0.041794]
[1773608528854,0.04248356,71781.0,71769.0,0.041794]
[1773608529054,0.0014,71780.0,71760.0,0.08745472]
[1773608529249,0.08885472,71780.0,71759.0,0.0014]
[1773608529459,0.12924872,71770.0,71759.0,0.0418]
[1773608529658,0.0014,71769.0,71759.0,0.0418]
[1773608530160,0.0014,71769.0,71760.0,0.041799]
[1773608530455,0.041792,71773.0,71740.0,0.33682265]
[1773608530760,0.043191,71775.0,71763.0,0.041797]
[1773608531261,0.041791,71774.0,71763.0,0.041797]
[1773608531759,0.0014,71775.0,71751.0,0.0014]
[1773608531760,0.041793,71772.0,71751.0,0.0014]
[1773608532762,0.041793,71772.0,71761.0,0.041798]
[1773608533063,0.041792,71774.0,71761.0,0.041798]
[1773608533262,0.041792,71773.0,71761.0,0.041798]
[1773608533462,0.041792,71772.0,71761.0,0.041798]
[1773608533764,0.041791,71774.0,71751.0,0.0014]
[1773608534951,0.041791,71774.0,71753.0,0.00243892]
[1773608536063,0.041791,71774.0,71761.0,0.041798]
[1773608536662,0.041792,71773.0,71761.0,0.041798]
[1773608539869,0.0014,71772.0,71761.0,0.041798]
[1773608541766,0.043193,71772.0,71761.0,0.041798]
[1773608541972,0.041793,71771.0,71759.0,0.0418]
[1773608542662,0.041793,71771.0,71760.0,0.041799]
[1773608544674,0.041793,71771.0,71761.0,0.041798]
[1773608549971,0.0014,71770.0,71761.0,0.041798]
[1773608550478,0.0014,71770.0,71755.0,0.041802]
[1773608550681,0.041794,71769.0,71757.0,0.041801]
[1773608550879,0.041795,71768.0,71757.0,0.041801]
[1773608552583,0.041791,71774.0,71754.0,0.04478807]
[1773608552883,0.043192,71773.0,71763.0,0.04478807]
[1773608553071,0.0014,71772.0,71763.0,0.04478807]
[1773608553268,0.041793,71771.0,71763.0,0.04478807]
[1773608553473,0.041793,71771.0,71759.0,0.041799]
[1773608553670,0.0014,71770.0,71759.0,0.041799]
[1773608553879,0.0014,71770.0,71761.0,0.041799]
[1773608554583,0.041793,71771.0,71761.0,0.041799]
[1773608554784,0.0014,71770.0,71761.0,0.041799]
[1773608555183,0.0014,71769.0,71761.0,0.041799]
[1773608555589,0.041793,71771.0,71761.0,0.041799]
[1773608555886,0.0014,71770.0,71761.0,0.041799]
[1773608556088,0.041792,71773.0,71761.0,0.08658707]
[1773608556386,0.0014,71772.0,71761.0,0.08658707]
[1773608556586,0.041792,71773.0,71761.0,0.08658707]
[1773608556781,0.0014,71772.0,71761.0,0.08658707]
[1773608557287,0.0014,71771.0,71761.0,0.08658707]
[1773608557787,0.0014,71770.0,71761.0,0.08658707]
[1773608558191,0.0014,71769.0,71761.0,0.08658707]
[1773608558594,0.041792,71772.0,71761.0,0.08658707]
[1773608558793,0.0014,71771.0,71761.0,0.08658707]
[1773608559095,0.041792,71772.0,71761.0,0.08658707]
[1773608559393,0.0014,71771.0,71761.0,0.08658707]
[1773608559595,0.041792,71772.0,71762.0,0.041798]
[1773608559894,0.0014,71771.0,71762.0,0.041798]
[1773608560094,0.041792,71772.0,71762.0,0.041798]
[1773608560296,0.0014,71771.0,71761.0,0.04478807]
[1773608560488,0.0014,71771.0,71762.0,0.041798]
[1773608560687,0.0014,71770.0,71762.0,0.041798]
[1773608561997,0.0014,71770.0,71761.0,0.04478807]
[1773608562295,0.0014,71769.0,71761.0,0.08658607]
[1773608562599,0.041792,71772.0,71761.0,0.08658607]
[1773608562794,0.041789,71778.0,71766.0,0.041796]
[1773608562995,0.041789,71777.0,71767.0,0.04478807]
[1773608563294,0.0014,71776.0,71767.0,0.04478807]
[1773608563496,0.0014,71776.0,71767.0,0.08658307]
[1773608563796,0.0014,71776.0,71767.0,0.04478807]
[1773608563998,0.041789,71777.0,71767.0,0.04478807]
[1773608564198,0.0014,71776.0,71767.0,0.04478807]
[1773608564698,0.0014,71775.0,71767.0,0.04478807]
[1773608565096,0.0014,71774.0,71767.0,0.04478807]
[1773608565491,0.041789,71777.0,71767.0,0.04478807]
[1773608565793,0.04319,71776.0,71767.0,0.04478807]
[1773608565994,0.04179,71776.0,71767.0,0.04478807]
[1773608566192,0.0014,71775.0,71767.0,0.04478807]
[1773608566398,0.043191,71775.0,71763.0,0.041797]
[1773608566594,0.043191,71775.0,71764.0,0.041797]
[1773608567289,0.043191,71775.0,71762.0,0.04478807]
[1773608567290,0.0014,71775.0,71762.0,0.04478807]
[1773608570695,0.0014,71774.0,71762.0,0.04478807]
[1773608570893,0.0014,71773.0,71761.0,0.04478807]
[1773608571100,0.0014,71774.0,71770.0,0.04478807]
[1773608573398,0.00733,71795.0,71786.0,0.041784]
[1773608573701,0.00733,71795.0,71785.0,0.08273473]
[1773608573702,0.0014,71794.0,71785.0,0.08273473]
[1773608573909,0.0014,71793.0,71785.0,0.04094973]
[1773608574104,0.0014,71792.0,71785.0,0.04094973]
[1773608574305,0.0014,71792.0,71782.0,0.041786]
[1773608574509,0.0014,71792.0,71781.0,0.08273673]
[1773608574694,0.00733,71795.0,71781.0,0.08273673]
[1773608574898,0.0014,71792.0,71782.0,0.041786]
[1773608585106,0.041778,71796.0,71780.0,0.08741289]
[1773608585305,0.0014,71795.0,71781.0,0.04094973]
[1773608585505,0.043179,71795.0,71781.0,0.04094973]
[1773608585915,0.0014,71795.0,71783.0,0.04094973]
[1773608587010,0.041778,71797.0,71786.0,0.041784]
[1773608587215,0.041778,71797.0,71787.0,0.04094973]
[1773608587510,0.041778,71797.0,71789.0,0.04094973]
[1773608587511,0.0014,71797.0,71789.0,0.04094973]
[1773608587813,0.0014,71797.0,71792.0,0.04094973]
[1773608588113,0.0014,71797.0,71792.0,0.08272973]
[1773608588304,0.0014,71798.0,71792.0,0.08272973]
[1773608588500,0.041774,71804.0,71792.0,0.08272973]
[1773608588705,0.0014,71803.0,71793.0,0.04094973]
[1773608589310,0.041772,71807.0,71777.0,0.0014]
[1773608589311,0.0014,71802.0,71794.0,0.041779]
[1773608589506,0.041772,71807.0,71795.0,0.04094973]
[1773608589709,0.0014,71801.0,71795.0,0.04094973]
[1773608590007,0.041772,71807.0,71795.0,0.04094973]
[1773608590214,0.0014,71806.0,71795.0,0.04094973]
[1773608590710,0.0014,71805.0,71795.0,0.04094973]
[1773608590910,0.12544187,71815.0,71795.0,0.04094973]
[1773608590911,0.0014,71804.0,71795.0,0.04094973]
[1773608591111,0.0014,71803.0,71795.0,0.04094973]
[1773608591313,0.041771,71809.0,71797.0,0.041777]
[1773608591612,0.041772,71807.0,71795.0,0.04094973]
[1773608591815,0.041772,71807.0,71794.0,0.041779]
[1773608591816,0.043173,71806.0,71794.0,0.041779]
[1773608592010,0.0014,71805.0,71794.0,0.041779]
[1773608592804,0.0014,71805.0,71790.0,0.04094973]
[1773608594113,0.0014,71805.0,71796.0,0.041778]
[1773608595110,0.0014,71805.0,71797.0,0.041777]
[1773608598111,0.04109703,71805.0,71783.0,0.04094973]
[1773608598316,0.041775,71802.0,71791.0,0.041781]
[1773608599015,0.041774,71804.0,71792.0,0.04178]
[1773608599210,0.041773,71806.0,71787.0,0.04094973]
[1773608599514,0.0014,71805.0,71787.0,0.04094973]
[1773608599710,0.043173,71805.0,71780.0,0.08741289]
[1773608599916,0.041774,71804.0,71781.0,0.04094973]
[1773608600115,0.0014,71803.0,71781.0,0.04094973]
[1773608600611,0.0014,71803.0,71782.0,0.04094973]
[1773608602019,0.041775,71802.0,71790.0,0.041781]
[1773608602616,0.041777,71798.0,71781.0,0.04158552]
[1773608602916,0.041777,71799.0,71786.0,0.041784]
[1773608603109,0.08741289,71800.0,71781.0,0.04158552]
[1773608603510,0.041776,71801.0,71781.0,0.04158552]
[1773608604723,0.08741289,71800.0,71781.0,0.04158552]
[1773608604906,0.08741289,71800.0,71789.0,0.041782]
[1773608605112,0.041776,71801.0,71789.0,0.041782]
[1773608606510,0.08741289,71800.0,71789.0,0.041782]
[1773608608128,0.0404397,71799.0,71777.0,0.04298552]
[1773608608335,0.04178,71794.0,71777.0,0.04158552]
[1773608608632,0.0014,71793.0,71777.0,0.04158552]
[1773608609127,0.041781,71792.0,71780.0,0.041787]
[1773608609429,0.041781,71792.0,71781.0,0.041787]
[1773608612120,0.041781,71791.0,71780.0,0.041787]
[1773608613028,0.04318,71793.0,71777.0,0.04158552]
[1773608613629,0.0014,71793.0,71782.0,0.041786]
[1773608613827,0.0014,71793.0,71783.0,0.041786]
[1773608614327,0.0014,71792.0,71783.0,0.041786]
[1773608616230,0.041779,71795.0,71783.0,0.041786]
[1773608616427,0.0014,71791.0,71784.0,0.041785]
[1773608618429,0.0014,71791.0,71782.0,0.041786]
[1773608618726,0.0014,71791.0,71783.0,0.041786]
[1773608627137,0.0014,71791.0,71775.0,0.04158552]
[1773608627345,0.0014,71791.0,71774.0,0.041791]
[1773608627546,0.0014,71791.0,71770.0,0.04158552]
[1773608627547,0.0014,71791.0,71776.0,0.04179]
[1773608627753,0.0014,71791.0,71774.0,0.041791]
[1773608628447,0.041785,71785.0,71774.0,0.041791]
[1773608628640,0.043186,71784.0,71770.0,0.04158552]
[1773608628840,0.0014,71783.0,71770.0,0.04158552]
[1773608629439,0.0014,71783.0,71766.0,0.04158552]
[1773608629440,0.08736859,71780.0,71766.0,0.04158552]
[1773608630151,0.0014,71783.0,71767.0,0.041795]
[1773608630355,0.041789,71778.0,71767.0,0.041795]
[1773608631047,0.041788,71780.0,71768.0,0.041794]
[1773608634347,0.041788,71779.0,71768.0,0.041794]
[1773608637848,0.03930043,71779.0,71754.0,0.03853671]
[1773608638054,0.041793,71772.0,71761.0,0.041799]
[1773608638352,0.0014,71771.0,71761.0,0.041799]
[1773608645154,0.043193,71771.0,71761.0,0.041799]
[1773608648453,0.0014,71771.0,71762.0,0.03853671]
[1773608648653,0.00733,71789.0,71771.0,0.03853671]
[1773608648950,0.0014,71788.0,71771.0,0.03853671]
[1773608649157,0.04179,71777.0,71766.0,0.041795]
[1773608649347,0.0014,71776.0,71767.0,0.03853671]
[1773608649758,0.04319,71776.0,71767.0,0.03853671]
[1773608650552,0.0014,71776.0,71759.0,0.041799]
[1773608650760,0.0014,71776.0,71757.0,0.03853671]
[1773608650761,0.041793,71771.0,71760.0,0.041799]
[1773608651559,0.0014,71776.0,71757.0,0.03853671]
[1773608651946,0.0014,71776.0,71755.0,0.041802]
[1773608651947,0.04070043,71776.0,71755.0,0.041802]
[1773608652160,0.041795,71768.0,71756.0,0.041801]
[1773608652357,0.0014,71767.0,71756.0,0.041801]
[1773608652559,0.041796,71766.0,71755.0,0.041802]
[1773608652861,0.0014,71767.0,71756.0,0.03853671]
[1773608653962,0.0014,71767.0,71757.0,0.041801]
[1773608655262,0.0014,71767.0,71758.0,0.03853671]
[1773608655857,0.041793,71771.0,71761.0,0.03853671]
[1773608656062,0.043194,71770.0,71761.0,0.03853671]
[1773608656365,0.0014,71769.0,71761.0,0.03853671]
[1773608661166,0.043195,71768.0,71756.0,0.041801]
[1773608661370,0.0014,71767.0,71757.0,0.03853671]
[1773608661572,0.043195,71767.0,71757.0,0.03853671]
[1773608663072,0.043195,71767.0,71757.0,0.08033771]
[1773608663970,0.041796,71766.0,71757.0,0.03853671]
[1773608664275,0.0014,71767.0,71754.0,0.041803]
[1773608664670,0.041797,71764.0,71753.0,0.041803]
[1773608665864,0.041796,71766.0,71754.0,0.041803]
[1773608667170,0.041796,71766.0,71755.0,0.041802]
[1773608667373,0.0014,71767.0,71751.0,0.03903766]
[1773608667971,0.0014,71767.0,71756.0,0.03903766]
[1773608668174,0.0014,71767.0,71750.0,0.10937859]
[1773608668175,0.08736859,71790.0,71762.0,0.03903766]
[1773608668374,0.041792,71773.0,71762.0,0.03903766]
[1773608668570,0.0014,71772.0,71762.0,0.03903766]
[1773608668878,0.0014,71772.0,71763.0,0.041797]
[1773608669276,0.0014,71772.0,71763.0,0.08083466]
[1773608670184,0.0014,71771.0,71764.0,0.041797]
[1773608670368,0.0014,71770.0,71764.0,0.041797]
[1773608670567,0.03837954,71784.0,71765.0,0.03903766]
[1773608670568,0.0014,71769.0,71765.0,0.03903766]
[1773608670878,0.00039991,71768.0,71765.0,0.03903766]
[1773608671077,0.0014,71769.0,71762.0,0.041798]
[1773608671277,0.0014,71769.0,71763.0,0.03903766]
[1773608672070,0.0014,71769.0,71763.0,0.08083466]
[1773608672272,0.0014,71769.0,71766.0,0.03903766]
[1773608672476,0.04570954,71789.0,71767.0,0.03903766]
[1773608672477,0.0014,71770.0,71767.0,0.03903766]
[1773608672678,0.041789,71778.0,71767.0,0.03903766]
[1773608672679,0.0014,71772.0,71767.0,0.03903766]
[1773608672881,0.0014,71772.0,71763.0,0.041797]
[1773608673380,0.0014,71772.0,71761.0,0.041798]
[1773608673584,0.03837954,71770.0,71750.0,0.02201]
[1773608673972,0.041803,71754.0,71750.0,0.02201]
[1773608674186,0.041804,71753.0,71750.0,0.02201]
[1773608674380,0.0014,71754.0,71740.0,0.03903766]
[1773608675079,0.043203,71754.0,71741.0,0.04181]
[1773608675480,0.00012007,71753.0,71736.0,0.03903766]
[1773608675678,0.00012007,71753.0,71750.0,0.00733]
[1773608676877,0.0014,71752.0,71750.0,0.00733]
[1773608677273,0.0014,71752.0,71743.0,0.041809]
[1773608678978,0.0014,71752.0,71743.0,0.00733]
[1773608679583,0.0014,71752.0,71743.0,0.049139]
[1773608680083,0.0014,71752.0,71743.0,0.00733]
[1773608683673,0.041805,71751.0,71743.0,0.00733]
[1773608683873,0.041805,71750.0,71743.0,0.00733]
[1773608684083,0.041806,71749.0,71743.0,0.00733]
[1773608684384,0.041805,71751.0,71743.0,0.00733]
[1773608685374,0.0014,71752.0,71735.0,0.03903766]
[1773608685581,0.0014,71752.0,71731.0,0.00069705]
[1773608685582,0.08746602,71750.0,71731.0,0.00069705]
[1773608685782,0.08746602,71750.0,71732.0,0.00453]
[1773608685981,0.041811,71741.0,71732.0,0.00453]
[1773608686286,0.00152007,71740.0,71732.0,0.00453]
[1773608686484,0.00152007,71740.0,71731.0,0.00069705]
[1773608688091,0.041812,71739.0,71731.0,0.00069705]
[1773608688684,0.00152007,71740.0,71731.0,0.00069705]
[1773608689088,0.00152007,71740.0,71731.0,0.00802705]
[1773608689489,0.04333107,71740.0,71731.0,0.00802705]
[1773608691594,0.03837954,71753.0,71731.0,0.05159471]
[1773608691790,0.041807,71747.0,71737.0,0.03903766]
[1773608692391,0.0014,71746.0,71736.0,0.041813]
[1773608692589,0.0014,71746.0,71736.0,0.046343]
[1773608694293,0.043208,71746.0,71736.0,0.00453]
[1773608694594,0.0014,71746.0,71736.0,0.00453]
[1773608694894,0.041809,71743.0,71736.0,0.00453]
[1773608697192,0.041808,71745.0,71736.0,0.00453]
[1773608697397,0.041809,71744.0,71736.0,0.00453]
[1773608700096,0.041809,71743.0,71733.0,0.041815]
[1773608700295,0.07949022,71743.0,71733.0,0.041815]
[1773608701000,0.041809,71743.0,71733.0,0.041815]
[1773608701293,0.00733,71755.0,71738.0,0.03681655]
[1773608701700,0.0014,71754.0,71738.0,0.03681655]
[1773608701992,0.041808,71745.0,71733.0,0.046345]
[1773608702198,0.041808,71745.0,71733.0,0.041815]
[1773608702199,0.0014,71744.0,71733.0,0.041815]
[1773608703089,0.0014,71744.0,71734.0,0.041814]
[1773608708198,0.0014,71744.0,71735.0,0.00453]
[1773608708401,0.0014,71744.0,71734.0,0.041814]
[1773608709796,0.0014,71744.0,71731.0,0.0448436]
[1773608709797,0.03768122,71741.0,71716.0,0.03681655]
[1773608710002,0.041815,71733.0,71722.0,0.041821]
[1773608710196,0.0014,71732.0,71722.0,0.041821]
[1773608710797,0.0014,71732.0,71723.0,0.04182]
[1773608710997,0.0014,71732.0,71724.0,0.04182]
[1773608713402,0.0014,71732.0,71716.0,0.03681655]
[1773608713403,0.0014,71732.0,71725.0,0.041819]
[1773608714505,0.0014,71742.0,71734.0,0.03681655]
[1773608714712,0.0014,71742.0,71724.0,0.00734]
[1773608714713,0.0014,71741.0,71725.0,0.03681655]
[1773608714905,0.041812,71738.0,71715.0,0.24945587]
[1773608715111,0.041812,71738.0,71726.0,0.041819]
[1773608715408,0.0014,71759.0,71727.0,0.03681655]
[1773608715610,0.03768122,71765.0,71741.0,0.03681655]
[1773608715912,0.03768122,71759.0,71740.0,0.04181]
[1773608716203,0.041802,71756.0,71741.0,0.04181]
[1773608716408,0.0014,71755.0,71741.0,0.04181]
[1773608716907,0.03768122,71759.0,71736.0,0.03681655]
[1773608717115,0.0014,71758.0,71746.0,0.041807]
[1773608717425,0.0014,71758.0,71747.0,0.03681655]
[1773608717604,0.0014,71758.0,71746.0,0.041807]
[1773608718614,0.043201,71758.0,71743.0,0.041809]
[1773608718799,0.043201,71758.0,71742.0,0.03681655]
[1773608720008,0.043201,71758.0,71744.0,0.041808]
[1773608721217,0.043201,71758.0,71745.0,0.041808]
[1773608723515,0.03632311,71753.0,71730.0,0.03907486]
[1773608723718,0.041813,71737.0,71716.0,0.24945587]
[1773608723903,0.0014,71736.0,71725.0,0.041819]
[1773608724218,0.0014,71736.0,71726.0,0.041819]
[1773608724609,0.0014,71736.0,71719.0,0.03907486]
[1773608725707,0.0014,71736.0,71726.0,0.041819]
[1773608726021,0.0014,71736.0,71730.0,0.041816]
[1773608726320,0.0014,71736.0,71728.0,0.063828]
[1773608726921,0.0014,71736.0,71728.0,0.041818]
[1773608727108,0.0014,71736.0,71726.0,0.041819]
[1773608727312,0.0014,71736.0,71727.0,0.041818]
[1773608728425,0.03632311,71735.0,71714.0,0.03907486]
[1773608730123,0.041815,71734.0,71722.0,0.041821]
[1773608731124,0.041815,71734.0,71723.0,0.04182]
[1773608731721,0.03632311,71735.0,71723.0,0.04182]
[1773608731918,0.0014,71736.0,71722.0,0.00734]
[1773608732123,0.0014,71736.0,71724.0,0.04182]
[1773608732508,0.043213,71736.0,71724.0,0.04182]
[1773608733222,0.041814,71735.0,71724.0,0.04182]
[1773608733422,0.0014,71734.0,71724.0,0.04182]
[1773608738523,0.0014,71734.0,71722.0,0.00734]
[1773608738524,0.0014,71734.0,71722.0,0.049161]
[1773608738722,0.0014,71734.0,71722.0,0.00734]
[1773608739726,0.041816,71731.0,71722.0,0.00734]
[1773608742129,0.041815,71733.0,71722.0,0.00734]
[1773608742532,0.0014,71734.0,71722.0,0.00734]
[1773608743128,0.041816,71732.0,71722.0,0.00734]
[1773608751420,0.0014,71734.0,71722.0,0.00734]
[1773608751628,0.03772311,71734.0,71722.0,0.00734]
[1773608752934,0.041817,71730.0,71722.0,0.00734]
[1773608756745,0.041816,71732.0,71722.0,0.00734]
[1773608758737,0.041816,71731.0,71722.0,0.00734]
[1773608763239,0.0014,71730.0,71722.0,0.00734]
[1773608765141,0.08752301,71740.0,71722.0,0.00734]
[1773608765142,0.0014,71747.0,71741.0,0.04181]
[1773608765444,0.0499342,71759.0,71713.0,0.29128187]
[1773608765445,0.0014,71744.0,71731.0,0.03758947]
[1773608765639,0.0798491,71756.0,71731.0,0.03758947]
[1773608765844,0.043202,71755.0,71744.0,0.041808]
[1773608766147,0.041804,71752.0,71740.0,0.04181]
[1773608766446,0.0380471,71756.0,71727.0,0.0014]
[1773608766447,0.0014,71751.0,71741.0,0.04181]
[1773608767241,0.0014,71751.0,71742.0,0.04181]
[1773608767446,0.0014,71751.0,71740.0,0.041811]
[1773608767649,0.043205,71751.0,71740.0,0.041811]
[1773608767840,0.041805,71751.0,71740.0,0.041811]
[1773608768036,0.0014,71750.0,71740.0,0.041811]
[1773608771549,0.0014,71750.0,71741.0,0.04181]
[1773608771758,0.0014,71750.0,71739.0,0.041811]
[1773608772542,0.043205,71750.0,71739.0,0.041811]
[1773608777457,0.041811,71740.0,71730.0,0.02201]
[1773608777646,0.041812,71738.0,71730.0,0.02201]
[1773608779545,0.0014,71739.0,71725.0,0.041819]
[1773608780053,0.041813,71737.0,71727.0,0.041818]
[1773608780255,0.043212,71739.0,71727.0,0.041818]
[1773608780957,0.043212,71739.0,71730.0,0.00733]
[1773608784852,0.041812,71738.0,71730.0,0.00733]
[1773608785558,0.0014,71739.0,71730.0,0.00733]
[1773608786355,0.0014,71739.0,71730.0,0.049147]
[1773608786556,0.0014,71739.0,71730.0,0.00733]
[1773608788162,0.0014,71739.0,71730.0,0.049146]
[1773608791353,0.0014,71739.0,71730.0,0.00733]
[1773608795856,0.041811,71740.0,71730.0,0.049147]
[1773608796061,0.0014,71738.0,71730.0,0.049147]
[1773608797062,0.043213,71738.0,71730.0,0.00733]
[1773608797358,0.043213,71738.0,71706.0,0.03639373]
[1773608797359,0.041814,71735.0,71706.0,0.03639373]
[1773608797565,0.041821,71723.0,71706.0,0.03639373]
[1773608797756,0.0014,71722.0,71711.0,0.03639373]
[1773608797956,0.0014,71721.0,71711.0,0.03639373]
[1773608798157,0.0014,71721.0,71706.0,0.03639373]
[1773608798463,0.0014,71721.0,71712.0,0.041827]
[1773608799059,0.0014,71721.0,71715.0,0.041825]
[1773608801050,0.0014,71721.0,71710.0,0.03639373]
[1773608801257,0.0014,71721.0,71715.0,0.00734]
[1773608801453,0.0014,71721.0,71715.0,0.00581993]
[1773608801650,0.0014,71721.0,71715.0,0.00176672]
[1773608802555,0.043222,71721.0,71705.0,0.03639373]
[1773608803053,0.043222,71721.0,71709.0,0.041829]
[1773608803660,0.041823,71719.0,71705.0,0.03639373]
[1773608803859,0.041823,71719.0,71703.0,0.00367538]
[1773608804065,0.041823,71719.0,71703.0,0.04006911]
[1773608804860,0.041822,71721.0,71707.0,0.03639373]
[1773608805167,0.0014,71720.0,71710.0,0.03639373]
[1773608805362,0.0014,71719.0,71710.0,0.03639373]
[1773608805865,0.0014,71718.0,71710.0,0.03639373]
[1773608806069,0.0014,71718.0,71712.0,0.041827]
[1773608806267,0.041821,71724.0,71712.0,0.041827]
[1773608806458,0.0014,71723.0,71710.0,0.03639373]
[1773608807165,0.0014,71722.0,71710.0,0.03639373]
[1773608807363,0.0014,71722.0,71713.0,0.041826]
[1773608807567,0.0014,71721.0,71713.0,0.041826]
[1773608807959,0.04182,71725.0,71713.0,0.041826]
[1773608808268,0.0014,71724.0,71713.0,0.041826]
[1773608808462,0.04182,71725.0,71713.0,0.041826]
[1773608808668,0.0014,71724.0,71714.0,0.041826]
[1773608809664,0.0014,71724.0,71710.0,0.03639373]
[1773608809866,0.0014,71726.0,71706.0,0.03639373]
[1773608810056,0.0014,71725.0,71716.0,0.041824]
[1773608810461,0.049159,71727.0,71716.0,0.041824]
[1773608810661,0.0014,71726.0,71716.0,0.041824]
[1773608810973,0.041821,71724.0,71707.0,0.03639373]
[1773608811171,0.043221,71723.0,71711.0,0.041827]
[1773608811557,0.0014,71722.0,71707.0,0.03639373]
[1773608811764,0.0014,71722.0,71706.0,0.0014]
[1773608811765,0.0014,71721.0,71712.0,0.03639373]
[1773608812465,0.0014,71721.0,71716.0,0.00734]
[1773608812662,0.041819,71726.0,71716.0,0.00734]
[1773608812863,0.0014,71725.0,71716.0,0.00734]
[1773608813266,0.0014,71724.0,71716.0,0.00734]
[1773608813672,0.041819,71726.0,71716.0,0.00734]
[1773608813975,0.0014,71725.0,71716.0,0.00734]
[1773608814168,0.041819,71726.0,71716.0,0.00734]
[1773608814373,0.19855885,71725.0,71716.0,0.00734]
[1773608814574,0.0014,71725.0,71716.0,0.00734]
[1773608814772,0.0014,71724.0,71716.0,0.00734]
[1773608815279,0.0014,71723.0,71716.0,0.00734]
[1773608815775,0.0014,71722.0,71716.0,0.00734]
[1773608816375,0.0014,71721.0,71716.0,0.00734]
[1773608816576,0.0014,71720.0,71716.0,0.00734]
[1773608816781,0.0014,71719.0,71716.0,0.00734]
[1773608819569,0.04182,71724.0,71716.0,0.00734]
[1773608819769,0.00064003,71723.0,71716.0,0.00734]
[1773608824084,0.19736049,71722.0,71716.0,0.00734]
[1773608824377,0.00064003,71723.0,71716.0,0.00734]
[1773608824378,0.19736049,71721.0,71716.0,0.00734]
[1773608824582,0.00064003,71723.0,71716.0,0.00734]
[1773608824783,0.19740934,71722.0,71716.0,0.00734]
[1773608824983,0.19740934,71721.0,71716.0,0.00734]
[1773608825186,0.00064003,71723.0,71716.0,0.00734]
[1773608825487,0.19746622,71722.0,71716.0,0.00734]
[1773608828076,0.0014,71729.0,71717.0,0.03734567]
[1773608828486,0.0014,71729.0,71719.0,0.041823]
[1773608828791,0.0014,71729.0,71718.0,0.041824]
[1773608829178,0.0014,71729.0,71719.0,0.041823]
[1773608829488,0.0014,71729.0,71720.0,0.041822]
[1773608832486,0.0014,71729.0,71718.0,0.041823]
[1773608832487,0.043218,71729.0,71718.0,0.041823]
[1773608835592,0.041818,71728.0,71716.0,0.00734]